fUSD/lending_fUSD_20240614
["ID","MTS","AMOUNT","RATE_DAILY","PERIOD"]
[329453167,1718374281223,-500.0,0.00024383,3]
[329453168,1718374281266,-500.0,0.00024383,3]
[329453169,1718374281277,-500.0,0.00024383,3]
[329453170,1718374281292,-717.7,0.00024383,3]
[329453171,1718374281307,-500.0,0.00024383,3]
[329453172,1718374281317,-155.55709807,0.00024383,3]
[329453173,1718374281340,-500.0,0.00024383,3]
[329453174,1718374281350,-500.0,0.00024383,3]
[329453175,1718374281389,-500.0,0.00024383,3]
[329453176,1718374281402,-500.0,0.00024383,3]
[329453177,1718374281413,-500.0,0.00024383,3]
[329453178,1718374281424,-500.0,0.00024383,3]
[329453179,1718374281435,-652.11,0.00024383,3]
[329453180,1718374281446,-452.02346243,0.00024383,3]
[329453181,1718374281457,-500.0,0.00024383,3]
[329453182,1718374281467,-500.0,0.00024383,3]
[329453183,1718374281483,-500.0,0.00024383,3]
[329453184,1718374281493,-500.0,0.00024383,3]
[329453185,1718374281510,-500.0,0.00024383,3]
[329453186,1718374281531,-500.0,0.00024383,3]
[329453187,1718374281569,-500.0,0.00024383,3]
[329453188,1718374281587,-500.0,0.00024383,3]
[329453189,1718374281604,-1076.23,0.00024383,3]
[329453190,1718374281628,-500.0,0.00024383,3]
[329453191,1718374281638,-500.0,0.00024383,3]
[329453192,1718374281655,-500.0,0.00024383,3]
[329453193,1718374281668,-500.0,0.00024383,3]
[329453194,1718374281678,-500.0,0.00024383,3]
[329453195,1718374281688,-500.0,0.00024383,3]
[329453196,1718374281704,-500.0,0.00024383,3]
[329453197,1718374281733,-500.0,0.00024383,3]
[329453198,1718374281744,-500.0,0.00024383,3]
[329453199,1718374281754,-500.0,0.00024383,3]
[329453200,1718374281765,-500.0,0.00024383,3]
[329453201,1718374281782,-500.0,0.00024383,3]
[329453202,1718374281792,-888.68,0.00024383,3]
[329453203,1718374281812,-500.0,0.00024383,3]
[329453204,1718374281822,-500.0,0.00024383,3]
[329453205,1718374281833,-500.0,0.00024383,3]
[329453206,1718374281847,-500.0,0.00024383,3]
[329453207,1718374281868,-500.0,0.00024383,3]
[329453208,1718374281882,-500.0,0.00024383,3]
[329453209,1718374281892,-500.0,0.00024383,3]
[329453210,1718374281904,-500.0,0.00024383,3]
[329453211,1718374281916,-226.04099888,0.00024383,3]
[329453212,1718374281928,-500.0,0.00024383,3]
[329453213,1718374281940,-500.0,0.00024383,3]
[329453214,1718374281962,-500.0,0.00024383,3]
[329453215,1718374281974,-500.0,0.00024383,3]
[329453216,1718374282002,-500.0,0.00024383,3]
[329453217,1718374282019,-693.55,0.00024383,3]
[329453218,1718374282031,-500.0,0.00024383,3]
[329453219,1718374282050,-917.0,0.00024383,3]
[329453220,1718374282159,-500.0,0.00024383,3]
[329453221,1718374282216,-500.0,0.00024383,3]
[329453222,1718374282236,-599.95,0.00024383,3]
[329453223,1718374282249,-500.0,0.00024383,3]
[329453224,1718374282273,-393.41699105,0.00024383,3]
[329453225,1718374282294,-500.0,0.00024383,3]
[329453226,1718374282322,-539.65457843,0.00024383,3]
[329453227,1718374282352,-500.0,0.00024383,3]
[329453228,1718374282363,-500.0,0.00024383,3]
[329453229,1718374282376,-500.0,0.00024383,3]
[329453230,1718374282393,-500.0,0.00024383,3]
[329453231,1718374282428,-500.0,0.00024383,3]
[329453232,1718374282438,-500.0,0.00024383,3]
[329453233,1718374282460,-500.0,0.00024383,3]
[329453234,1718374282471,-500.0,0.00024383,3]
[329453235,1718374282497,-500.0,0.00024383,2]
[329453236,1718374282516,-839.71,0.00024383,3]
[329453237,1718374282532,-500.0,0.00024383,3]
[329453238,1718374282544,-500.0,0.00024383,3]
[329453239,1718374282572,-500.0,0.00024383,3]
[329453240,1718374282608,-641.52,0.00024383,3]
[329453241,1718374282620,-500.0,0.00024383,3]
[329453242,1718374282637,-675.06,0.00024383,3]
[329453243,1718374282649,-790.03,0.00024383,3]
[329453244,1718374282659,-546.34,0.00024383,3]
[329453245,1718374282676,-500.0,0.00024383,3]
[329453246,1718374282701,-530.09971756,0.00024383,3]
[329453247,1718374282714,-627.55727767,0.00024383,3]
[329453248,1718374282725,-500.0,0.00024383,3]
[329453249,1718374282750,-1529.68,0.00024383,3]
[329453250,1718374282765,-500.0,0.00024383,3]
[329453251,1718374282797,-500.0,0.00024383,3]
[329453252,1718374282833,-500.0,0.00024383,3]
[329453253,1718374282854,-802.47,0.00024383,3]
[329453254,1718374282867,-500.0,0.00024383,3]
[329453255,1718374282879,-500.0,0.00024383,3]
[329453256,1718374282890,-500.0,0.00024383,3]
[329453257,1718374282916,-500.0,0.00024383,3]
[329453258,1718374282926,-543.46,0.00024383,3]
[329453259,1718374282936,-1207.99,0.00024383,3]
[329453260,1718374282956,-500.0,0.00024383,3]
[329453261,1718374282976,-500.0,0.00024383,3]
[329453262,1718374283070,-500.0,0.00024383,3]
[329453263,1718374283086,-591.92796317,0.00024383,3]
[329453264,1718374283099,-500.0,0.00024383,3]
[329453265,1718374283154,-743.91,0.00024383,3]
[329453266,1718374283165,-961.27,0.00024383,3]
[329453267,1718374283175,-500.0,0.00024383,3]
[329453268,1718374283224,-500.0,0.00024383,3]
[329453269,1718374283263,-500.0,0.00024383,3]
[329453270,1718374283296,-500.0,0.00024383,3]
[329453271,1718374283353,-647.24305652,0.00024383,3]
[329453272,1718374283365,-500.0,0.00024383,3]
[329453273,1718374283381,-574.39057902,0.00024383,3]
[329453274,1718374283456,-500.0,0.00024383,3]
[329453275,1718374283471,-624.95,0.00024383,3]
[329453276,1718374283509,-500.0,0.00024383,3]
[329453277,1718374283564,-500.0,0.00024383,3]
[329453278,1718374283593,-500.0,0.00024383,3]
[329453279,1718374283607,-500.0,0.00024383,3]
[329453280,1718374283618,-431.16888341,0.00024383,3]
[329453281,1718374283657,-500.0,0.00024383,3]
[329453282,1718374283698,-500.0,0.00024383,3]
[329453283,1718374283709,-500.0,0.00024383,3]
[329453284,1718374283720,-500.0,0.00024383,3]
[329453285,1718374283738,-500.0,0.00024383,3]
[329453286,1718374283765,-511.25351642,0.00024383,3]
[329453287,1718374283836,-500.0,0.00024383,3]
[329453288,1718374283847,-722.9,0.00024383,3]
[329453289,1718374283876,-613.44,0.00024383,3]
[329453290,1718374283959,-500.0,0.00024383,3]
[329453291,1718374283985,-500.0,0.00024383,3]
[329453292,1718374284014,-773.81,0.00024383,3]
[329453293,1718374284028,-500.0,0.00024383,3]
[329453294,1718374284043,-500.0,0.00024383,3]
[329453295,1718374284076,-500.0,0.00024383,3]
[329453296,1718374284087,-500.0,0.00024383,3]
[329453297,1718374284108,-500.0,0.00024383,3]
[329453298,1718374284119,-500.0,0.00024383,3]
[329453299,1718374284134,-500.0,0.00024383,3]
[329453300,1718374284149,-500.0,0.00024383,3]
[329453301,1718374284209,-500.0,0.00024383,3]
[329453302,1718374284271,-578.49062703,0.00024383,3]
[329453303,1718374284292,-377.70903943,0.00024383,3]
[329453304,1718374284351,-500.0,0.00024383,3]
[329453305,1718374284402,-500.0,0.00024383,3]
[329453306,1718374284418,-500.0,0.00024383,3]
[329453307,1718374284431,-205.55501724,0.00024383,3]
[329453308,1718374284446,-500.0,0.00024383,3]
[329453309,1718374284461,-500.0,0.00024383,3]
[329453310,1718374284521,-500.0,0.00024383,3]
[329453311,1718374284536,-150.0,0.00024383,3]
[329453312,1718374284559,-500.0,0.00024383,3]
[329453313,1718374284569,-500.0,0.00024383,3]
[329453314,1718374284591,-500.0,0.00024383,3]
[329453315,1718374284622,-500.0,0.00024383,3]
[329453316,1718374284641,-638.15,0.00024383,3]
[329453317,1718374284653,-151.0,0.00024383,7]
[329453318,1718374284688,-151.0,0.00024383,7]
[329453319,1718374284702,-151.0,0.00024383,7]
[329453320,1718374284768,-500.0,0.00024383,3]
[329453321,1718374284812,-151.0,0.00024383,7]
[329453322,1718374284843,-1315.53,0.00024383,3]
[329453323,1718374284858,-500.0,0.00024383,3]
[329453324,1718374284873,-500.0,0.00024383,3]
[329453325,1718374284902,-500.0,0.00024383,3]
[329453326,1718374284930,-500.0,0.00024383,3]
[329453327,1718374284942,-326.29047472,0.00024383,3]
[329453328,1718374284955,-500.0,0.00024383,3]
[329453329,1718374284974,-500.0,0.00024383,3]
[329453330,1718374284992,-500.0,0.00024383,3]
[329453331,1718374285044,-805.14,0.00024383,3]
[329453332,1718374285141,-500.00235373,0.00024383,3]
[329453333,1718374285184,-500.0,0.00024383,3]
[329453334,1718374285232,-500.0,0.00024383,3]
[329453335,1718374285262,-500.0,0.00024383,3]
[329453336,1718374285303,-500.0,0.00024383,3]
[329453337,1718374285332,-527.30353584,0.00024383,3]
[329453338,1718374285394,-500.0,0.00024383,3]
[329453339,1718374285476,-500.0,0.00024383,3]
[329453340,1718374285506,-897.25,0.00024383,3]
[329453341,1718374285566,-159.76798222,0.00024383,3]
[329453342,1718374285583,-500.0,0.00024383,3]
[329453343,1718374285644,-500.0,0.00024383,3]
[329453344,1718374285684,-500.0,0.00024383,3]
[329453345,1718374285699,-500.0,0.00024383,3]
[329453346,1718374285758,-500.0,0.00024383,3]
[329453347,1718374285777,-386.6905059,0.00024383,3]
[329453348,1718374285829,-500.0,0.00024383,3]
[329453349,1718374285840,-500.0,0.00024383,3]
[329453350,1718374285858,-500.0,0.00024383,3]
[329453351,1718374285878,-500.0,0.00024383,3]
[329453352,1718374285913,-500.0,0.00024383,3]
[329453353,1718374285928,-500.0,0.00024383,3]
[329453354,1718374285963,-500.0,0.00024383,3]
[329453355,1718374285992,-500.0,0.00024383,3]
[329453356,1718374286011,-500.0,0.00024383,3]
[329453357,1718374286044,-500.0,0.00024383,3]
[329453358,1718374286070,-500.0,0.00024383,3]
[329453359,1718374286132,-565.36384902,0.00024383,3]
[329453360,1718374286209,-151.0,0.00024383,7]
[329453361,1718374286253,-151.0,0.00024383,7]
[329453362,1718374286294,-500.0,0.00024383,3]
[329453363,1718374286338,-527.90360253,0.00024383,3]
[329453364,1718374286357,-659.84,0.00024383,3]
[329453365,1718374286400,-835.81,0.00024383,3]
[329453366,1718374286428,-500.0,0.00024383,3]
[329453367,1718374286460,-519.80582204,0.00024383,3]
[329453368,1718374286491,-500.0,0.00024383,3]
[329453369,1718374286523,-500.0,0.00024383,3]
[329453370,1718374286535,-517.55182443,0.00024383,3]
[329453371,1718374286552,-519.63991818,0.00024383,3]
[329453372,1718374286572,-500.0,0.00024383,3]
[329453373,1718374286588,-500.0,0.00024383,3]
[329453374,1718374286695,-675.24,0.00024383,3]
[329453375,1718374286707,-1706.64,0.00024383,3]
[329453376,1718374286721,-500.0,0.00024383,3]
[329453377,1718374286764,-500.0,0.00024383,3]
[329453378,1718374286782,-500.0,0.00024383,3]
[329453379,1718374286806,-500.0,0.00024383,3]
[329453380,1718374286832,-500.0,0.00024383,3]
[329453381,1718374286857,-612.78,0.00024383,3]
[329453382,1718374286868,-500.0,0.00024383,3]
[329453383,1718374286886,-527.45,0.00024383,3]
[329453384,1718374286902,-530.42535807,0.00024383,3]
[329453385,1718374286913,-561.87,0.00024383,3]
[329453386,1718374286929,-500.0,0.00024383,3]
[329453387,1718374286939,-500.0,0.00024383,3]
[329453388,1718374286953,-500.0,0.00024383,3]
[329453389,1718374286965,-500.0,0.00024383,3]
[329453390,1718374286977,-500.0,0.00024383,3]
[329453391,1718374287003,-500.0,0.00024383,3]
[329453392,1718374287015,-500.0,0.00024383,3]
[329453393,1718374287037,-607.16243194,0.00024383,3]
[329453394,1718374287051,-500.0,0.00024383,3]
[329453395,1718374287062,-500.0,0.00024383,3]
[329453396,1718374287083,-500.0,0.00024383,3]
[329453397,1718374287095,-500.0,0.00024383,3]
[329453398,1718374287113,-500.0,0.00024383,3]
[329453399,1718374287125,-500.0,0.00024383,3]
[329453400,1718374287140,-151.0,0.00024383,7]
[329453401,1718374287174,-151.0,0.00024383,7]
[329453402,1718374287201,-500.0,0.00024383,3]
[329453403,1718374287213,-775.58,0.00024383,3]
[329453404,1718374287226,-500.0,0.00024383,3]
[329453405,1718374287237,-653.6,0.00024383,3]
[329453406,1718374287256,-576.03,0.00024383,3]
[329453407,1718374287273,-500.0,0.00024383,3]
[329453408,1718374287293,-500.0,0.00024383,3]
[329453409,1718374287311,-918.51,0.00024383,3]
[329453410,1718374287321,-500.0,0.00024383,3]
[329453411,1718374287334,-500.0,0.00024383,3]
[329453412,1718374287344,-531.05598205,0.00024383,3]
[329453413,1718374287356,-500.0,0.00024383,3]
[329453414,1718374287373,-683.33,0.00024383,3]
[329453415,1718374287389,-441.41220953,0.00024383,3]
[329453416,1718374287399,-500.0,0.00024383,3]
[329453417,1718374287437,-500.0,0.00024383,3]
[329453418,1718374287449,-500.0,0.00024383,3]
[329453419,1718374287464,-500.0,0.00024383,3]
[329453420,1718374287476,-500.0,0.00024383,3]
[329453421,1718374287499,-500.0,0.00024383,3]
[329453422,1718374287529,-500.0,0.00024383,3]
[329453423,1718374287551,-602.21,0.00024383,3]
[329453424,1718374287576,-644.48,0.00024383,3]
[329453425,1718374287594,-500.0,0.00024383,3]
[329453426,1718374287617,-186.38188765,0.00024383,3]
[329453427,1718374287627,-2248.72,0.00024383,3]
[329453428,1718374287664,-500.0,0.00024383,3]
[329453429,1718374287694,-500.0,0.00024383,3]
[329453430,1718374287718,-500.0,0.00024383,3]
[329453431,1718374287729,-2837.38,0.00024383,3]
[329453432,1718374287739,-500.0,0.00024383,3]
[329453433,1718374287750,-1370.68,0.00024383,3]
[329453434,1718374287770,-500.0,0.00024383,3]
[329453435,1718374287783,-664.65,0.00024383,3]
[329453436,1718374287802,-500.0,0.00024383,3]
[329453437,1718374287832,-642.17,0.00024383,3]
[329453438,1718374287843,-151.0,0.00024383,7]
[329453439,1718374287876,-151.0,0.00024383,7]
[329453440,1718374287889,-608.32,0.00024383,3]
[329453441,1718374287960,-388.6790646,0.00024383,3]
[329453442,1718374287993,-841.18,0.00024383,3]
[329453443,1718374288031,-541.72922357,0.00024383,3]
[329453444,1718374288044,-3736.29,0.00024383,3]
[329453445,1718374288070,-500.0,0.00024383,3]
[329453446,1718374288120,-500.0,0.00024383,3]
[329453447,1718374288143,-500.0,0.00024383,3]
[329453448,1718374288167,-500.0,0.00024383,3]
[329453449,1718374288198,-1004.61,0.00024383,3]
[329453450,1718374288222,-982.18,0.00024383,3]
[329453451,1718374288242,-539.08970676,0.00024383,3]
[329453452,1718374288274,-500.0,0.00024383,3]
[329453453,1718374288305,-758.79,0.00024383,3]
[329453454,1718374288336,-1098.2,0.00024383,3]
[329453455,1718374288358,-1477.33,0.00024383,3]
[329453456,1718374288377,-500.0,0.00024383,3]
[329453457,1718374288391,-922.2,0.00024383,3]
[329453458,1718374288413,-500.0,0.00024383,3]
[329453459,1718374288430,-596.84638601,0.00024383,3]
[329453461,1718374288448,-500.0,0.00024383,3]
[329453462,1718374288463,-500.0,0.00024383,3]
[329453464,1718374288596,-481.1448185,0.00024383,3]
[329453465,1718374288616,-151.0,0.00024383,7]
[329453466,1718374288647,-816.92,0.00024383,3]
[329453467,1718374288669,-151.0,0.00024383,7]
[329453468,1718374288771,-500.0,0.00024383,3]
[329453469,1718374288807,-880.65,0.00024383,3]
[329453470,1718374288825,-640.64,0.00024383,3]
[329453471,1718374288868,-500.0,0.00024383,3]
[329453472,1718374288919,-519.15372499,0.00024383,3]
[329453473,1718374288941,-500.0,0.00024383,3]
[329453474,1718374288997,-715.17,0.00024383,3]
[329453475,1718374289019,-8277.38,0.00024383,3]
[329453476,1718374289105,-412.00036025,0.00024383,3]
[329453477,1718374289145,-151.0,0.00024383,7]
[329453478,1718374289201,-151.0,0.00024383,7]
[329453479,1718374289253,-516.53113696,0.00024383,3]
[329453480,1718374289290,-822.26,0.00024383,3]
[329453481,1718374289337,-9586.73,0.00024383,3]
[329453482,1718374289397,-643.41021395,0.00024383,3]
[329453483,1718374289440,-500.0,0.00024383,3]
[329453484,1718374289459,-2574.26,0.00024383,3]
[329453485,1718374289482,-447.47831992,0.00024383,3]
[329453486,1718374289518,-866.21,0.00024383,3]
[329453487,1718374289543,-500.0,0.00024383,3]
[329453488,1718374289593,-500.0,0.00024383,3]
[329453489,1718374289611,-738.39,0.00024383,3]
[329453490,1718374289636,-500.0,0.00024383,3]
[329453491,1718374289668,-601.2346742,0.00024383,3]
[329453492,1718374289687,-1145.58,0.00024383,3]
[329453493,1718374289723,-500.0,0.00024383,3]
[329453494,1718374289751,-500.0,0.00024383,3]
[329453495,1718374289778,-1007.53,0.00024383,3]
[329453496,1718374289806,-1097.83,0.00024383,3]
[329453497,1718374289827,-814.77,0.00024383,3]
[329453498,1718374289845,-500.0,0.00024383,3]
[329453499,1718374289864,-500.0,0.00024383,3]
[329453500,1718374289885,-500.0,0.00024383,3]
[329453501,1718374289909,-524.52413743,0.00024383,3]
[329453502,1718374289929,-509.3616011,0.00024383,3]
[329453503,1718374289948,-3640.36,0.00024383,3]
[329453504,1718374289968,-577.91,0.00024383,3]
[329453505,1718374289990,-665.19,0.00024383,3]
[329453506,1718374290010,-508.45033532,0.00024383,3]
[329453507,1718374290059,-151.0,0.00024383,7]
[329453508,1718374290081,-151.0,0.00024383,7]
[329453509,1718374290101,-611.13936636,0.00024383,3]
[329453510,1718374290123,-1074.54,0.00024383,3]
[329453511,1718374290148,-1431.78,0.00024383,3]
[329453512,1718374290166,-917.79,0.00024383,3]
[329453513,1718374290184,-524.05,0.00024383,3]
[329453514,1718374290204,-151.0,0.00024383,7]
[329453515,1718374290221,-508.84992533,0.00024383,3]
[329453516,1718374290238,-151.0,0.00024383,7]
[329453517,1718374290257,-151.0,0.00024383,7]
[329453518,1718374290419,-184.24855,0.00024383,7]
[329453519,1718374290454,-989.25,0.00024383,7]
[329453520,1718374290476,-500.0,0.00024383,3]
[329453521,1718374290521,-1159.94,0.00024383,3]
[329453522,1718374290551,-500.0,0.00024383,3]
[329453523,1718374290578,-3419.19,0.00024383,3]
[329453524,1718374290592,-1158.93,0.00024383,3]
[329453525,1718374290605,-5767.42,0.00024383,3]
[329453526,1718374290616,-1216.46,0.00024383,3]
[329453527,1718374290626,-508.59245934,0.00024383,3]
[329453528,1718374290637,-954.24,0.00024383,3]
[329453529,1718374290661,-500.0,0.00024383,3]
[329453530,1718374290700,-513.23,0.00024383,3]
[329453531,1718374290753,-342.46774065,0.00024383,3]
[329453532,1718374290800,-500.0,0.00024383,3]
[329453533,1718374290825,-1143.41,0.00024383,3]
[329453534,1718374290838,-500.0,0.00024383,3]
[329453535,1718374290868,-500.0,0.00024383,3]
[329453536,1718374290918,-2791.61,0.00024383,3]
[329453537,1718374290940,-500.0,0.00024383,3]
[329453538,1718374290994,-506.39334475,0.00024383,3]
[329453539,1718374291009,-551.73719221,0.00024383,3]
[329453540,1718374291020,-563.76,0.00024383,3]
[329453541,1718374291033,-1744.13,0.00024383,3]
[329453542,1718374291083,-1063.94,0.00024383,3]
[329453543,1718374291099,-500.0,0.00024383,3]
[329453544,1718374291138,-500.0,0.00024383,3]
[329453545,1718374291179,-500.0,0.00024383,3]
[329453546,1718374291192,-500.0,0.00024383,3]
[329453547,1718374291204,-563.83,0.00024383,3]
[329453548,1718374291234,-1290.53,0.00024383,3]
[329453549,1718374291305,-500.0,0.00024383,3]
[329453550,1718374291333,-500.0,0.00024383,3]
[329453551,1718374291344,-503.69635616,0.00024383,3]
[329453552,1718374291355,-500.0,0.00024383,3]
[329453553,1718374291366,-500.0,0.00024383,3]
[329453554,1718374291381,-1729.64,0.00024383,3]
[329453555,1718374291394,-151.0,0.00024383,7]
[329453556,1718374291404,-1869.28,0.00024383,3]
[329453557,1718374291445,-500.0,0.00024383,3]
[329453558,1718374291481,-151.0,0.00024383,7]
[329453559,1718374291498,-151.0,0.00024383,7]
[329453560,1718374291513,-500.0,0.00024383,3]
[329453561,1718374291531,-522.05,0.00024383,3]
[329453562,1718374291576,-500.0,0.00024383,3]
[329453563,1718374291591,-163.81854702,0.00024383,3]
[329453564,1718374291610,-500.0,0.00024383,3]
[329453565,1718374291634,-508.91407556,0.00024383,3]
[329453566,1718374291667,-1122.16,0.00024383,3]
[329453567,1718374291712,-925.97,0.00024383,3]
[329453568,1718374291766,-2122.29,0.00024383,3]
[329453569,1718374291789,-500.0,0.00024383,3]
[329453570,1718374291832,-3209.58,0.00024383,3]
[329453571,1718374291845,-599.48,0.00024383,3]
[329453572,1718374291861,-1482.61,0.00024383,3]
[329453573,1718374291901,-500.0,0.00024383,3]
[329453574,1718374291930,-869.83,0.00024383,3]
[329453575,1718374291968,-500.0,0.00024383,3]
[329453576,1718374292004,-500.0,0.00024383,3]
[329453577,1718374292015,-1413.02,0.00024383,3]
[329453578,1718374292027,-2108.9,0.00024383,3]
[329453579,1718374292056,-500.0,0.00024383,3]
[329453580,1718374292069,-530.51462739,0.00024383,3]
[329453581,1718374292105,-508.31,0.00024383,3]
[329453582,1718374292124,-500.0,0.00024383,3]
[329453583,1718374292183,-242.87909941,0.00024383,3]
[329453584,1718374292198,-882.09,0.00024383,3]
[329453585,1718374292209,-500.0,0.00024383,3]
[329453586,1718374292259,-1309.64,0.00024383,3]
[329453587,1718374292310,-500.0,0.00024383,3]
[329453588,1718374292327,-6459.01,0.00024383,3]
[329453589,1718374292351,-8278.21,0.00024383,3]
[329453590,1718374292371,-500.0,0.00024383,3]
[329453591,1718374292416,-766.08,0.00024383,3]
[329453592,1718374292428,-1363.23,0.00024383,3]
[329453593,1718374292438,-713.94,0.00024383,3]
[329453594,1718374292449,-500.0,0.00024383,3]
[329453595,1718374292464,-500.0,0.00024383,3]
[329453596,1718374292482,-500.0,0.00024383,3]
[329453597,1718374292501,-500.0,0.00024383,3]
[329453598,1718374292561,-500.0,0.00024383,3]
[329453599,1718374292602,-151.0,0.00024383,7]
[329453600,1718374292616,-151.0,0.00024383,7]
[329453601,1718374292627,-500.0,0.00024383,3]
[329453602,1718374292676,-718.7,0.00024383,3]
[329453603,1718374292700,-967.31,0.00024383,3]
[329453604,1718374292773,-151.0,0.00024383,7]
[329453605,1718374292822,-186.644211,0.00024383,7]
[329453606,1718374292836,-2890.78,0.00024383,3]
[329453607,1718374292898,-500.0,0.00024383,3]
[329453608,1718374292933,-6155.02,0.00024383,3]
[329453609,1718374292979,-500.0,0.00024383,3]
[329453610,1718374292990,-500.0,0.00024383,3]
[329453611,1718374293001,-500.0,0.00024383,3]
[329453612,1718374293038,-3858.31,0.00024383,3]
[329453613,1718374293058,-3426.35,0.00024383,3]
[329453614,1718374293128,-500.0,0.00024383,3]
[329453615,1718374293172,-500.0,0.00024383,3]
[329453616,1718374293200,-151.0,0.00024383,7]
[329453617,1718374293236,-151.0,0.00024383,7]
[329453618,1718374293275,-500.0,0.00024383,3]
[329453619,1718374293313,-528.95704992,0.00024383,3]
[329453620,1718374293380,-1937.42,0.00024383,3]
[329453621,1718374293417,-500.0,0.00024383,3]
[329453622,1718374293434,-602.14,0.00024383,3]
[329453623,1718374293451,-1188.94,0.00024383,3]
[329453624,1718374293512,-500.0,0.00024383,3]
[329453625,1718374293581,-506.2643471,0.00024383,3]
[329453626,1718374293592,-500.0,0.00024383,3]
[329453627,1718374293604,-543.06772918,0.00024383,3]
[329453628,1718374293622,-500.0,0.00024383,3]
[329453629,1718374293659,-2061.56,0.00024383,3]
[329453630,1718374293685,-500.0,0.00024383,3]
[329453631,1718374293704,-1016.56,0.00024383,3]
[329453632,1718374293720,-1128.67,0.00024383,3]
[329453633,1718374293755,-1692.02,0.00024383,3]
[329453634,1718374293784,-501.1,0.00024383,3]
[329453635,1718374293798,-500.0,0.00024383,3]
[329453636,1718374293852,-567.38,0.00024383,3]
[329453637,1718374293864,-1002.93,0.00024383,3]
[329453638,1718374293894,-556.90313268,0.00024383,3]
[329453639,1718374293920,-509.808639,0.00024383,3]
[329453640,1718374293965,-1112.84,0.00024383,3]
[329453641,1718374293976,-544.85,0.00024383,3]
[329453642,1718374293986,-509.85278096,0.00024383,3]
[329453643,1718374294020,-500.0,0.00024383,3]
[329453644,1718374294033,-689.14,0.00024383,3]
[329453645,1718374294067,-500.0,0.00024383,3]
[329453646,1718374294104,-500.0,0.00024383,3]
[329453647,1718374294120,-514.08,0.00024383,3]
[329453648,1718374294166,-1669.34,0.00024383,3]
[329453649,1718374294203,-500.0,0.00024383,3]
[329453650,1718374294234,-509.73852077,0.00024383,3]
[329453651,1718374294268,-3822.81,0.00024383,3]
[329453652,1718374294294,-500.0,0.00024383,3]
[329453653,1718374294308,-500.0,0.00024383,3]
[329453654,1718374294324,-500.0,0.00024383,3]
[329453655,1718374294352,-500.0,0.00024383,3]
[329453656,1718374294365,-2384.22,0.00024383,3]
[329453657,1718374294387,-1115.57,0.00024383,3]
[329453658,1718374294399,-492.82132983,0.00024383,3]
[329453659,1718374294421,-500.0,0.00024383,2]
[329453660,1718374294438,-500.0,0.00024383,3]
[329453661,1718374294448,-702.55,0.00024383,3]
[329453662,1718374294469,-500.0,0.00024383,3]
[329453663,1718374294483,-532.14,0.00024383,3]
[329453664,1718374294507,-500.0,0.00024383,3]
[329453665,1718374294537,-2163.42,0.00024383,3]
[329453666,1718374294558,-500.0,0.00024383,3]
[329453667,1718374294591,-629.08,0.00024383,3]
[329453668,1718374294616,-873.34,0.00024383,3]